fUSD/lending_fUSD_20250115
["ID","MTS","AMOUNT","RATE_DAILY","PERIOD"]
[348982101,1736914249641,-568.43,0.00016478,2]
[348982102,1736914249653,-507.08,0.00016478,2]
[348982103,1736914249665,-1140.72,0.00016478,2]
[348982104,1736914249677,-223.67,0.00016479,2]
[348982105,1736914249688,-569.81,0.00016479,2]
[348982106,1736914249701,-500.0,0.00016479,2]
[348982107,1736914249713,-1124.29,0.00016479,2]
[348982108,1736914249724,-945.38,0.00016479,2]
[348982109,1736914249735,-539.17127512,0.00016546,2]
[348982110,1736914249747,-5000.0,0.00016557,2]
[348982111,1736914249758,-5000.0,0.00016557,2]
[348982112,1736914249769,-5000.0,0.00016557,2]
[348982113,1736914249782,-341.50784213,0.00016585,2]
[348982114,1736914249794,-150.0,0.00016586,2]
[348982115,1736914249808,-150.0,0.00016628,2]
[348982116,1736914249820,-175.85,0.00016712,2]
[348982117,1736914249832,-583.41,0.00016752,2]
[348982118,1736914249844,-617.28,0.00016752,2]
[348982119,1736914249856,-583.38428427,0.00016752,2]
[348982120,1736914249868,-536.89,0.00016752,2]
[348982121,1736914249881,-568.43,0.00016752,2]
[348982122,1736914249892,-507.08,0.00016752,2]
[348982123,1736914249904,-1140.72,0.00016752,2]
[348982124,1736914249917,-223.67,0.00016753,2]
[348982125,1736914249927,-569.81,0.00016753,2]
[348982126,1736914249939,-500.0,0.00016753,2]
[348982127,1736914249951,-1124.29,0.00016753,2]
[348982128,1736914249963,-945.38,0.00016753,2]
[348982129,1736914249974,-5001.8033,0.000168,2]
[348982130,1736914249986,-182.82,0.00016813,2]
[348982131,1736914249997,-598.36,0.00016813,2]
[348982132,1736914250008,-150.0,0.00016877,2]
[348982133,1736914250021,-187.29292225,0.00016915,2]
[348982134,1736914250031,-156.24311542,0.00016915,2]
[348982135,1736914250043,-1500.0,0.00016921,2]
[348982136,1736914250055,-29999.99,0.00016922,2]
[348982137,1736914250068,-348.85,0.00016922,2]
[348982138,1736914250081,-201.26408194,0.0001695,2]
[348982139,1736914250093,-417.0,0.00017,2]
[348982140,1736914250104,-700.0,0.00017,2]
[348982141,1736914250116,-40640.0,0.00017,3]
[348982142,1736914250126,-3191.06,0.00017,2]
[348982143,1736914250139,-583.41,0.00017026,2]
[348982144,1736914250156,-617.28,0.00017026,2]
[348982145,1736914250166,-536.89,0.00017026,2]
[348982146,1736914250177,-568.43,0.00017026,2]
[348982147,1736914250187,-1140.72,0.00017026,2]
[348982148,1736914250198,-507.08,0.00017026,2]
[348982149,1736914250211,-223.67,0.00017027,2]
[348982150,1736914250226,-569.81,0.00017027,2]
[348982151,1736914250236,-583.15179524,0.00017027,2]
[348982152,1736914250246,-1124.29,0.00017027,2]
[348982153,1736914250256,-945.38,0.00017027,2]
[348982154,1736914250266,-772.39,0.00017205,2]
[348982155,1736914250275,-772.39,0.00017205,2]
[348982156,1736914250285,-772.39,0.00017205,2]
[348982157,1736914250295,-667.46,0.00017205,2]
[348982158,1736914250307,-150.0,0.00017221,2]
[348982159,1736914250319,-150.0,0.00017229,2]
[348982160,1736914250331,-158.14,0.00017255,2]
[348982161,1736914250342,-279.18,0.00017278,2]
[348982162,1736914250352,-583.47219913,0.000173,2]
[348982163,1736914250362,-617.42468143,0.000173,2]
[348982164,1736914250373,-537.09285774,0.000173,2]
[348982165,1736914250386,-568.51260344,0.000173,2]
[348982166,1736914250397,-1140.82775799,0.000173,2]
[348982167,1736914250408,-507.23857659,0.000173,2]
[348982168,1736914250419,-223.78847145,0.00017301,2]
[348982169,1736914250431,-569.89350048,0.00017301,2]
[348982170,1736914250443,-1124.52170052,0.00017301,2]
[348982171,1736914250455,-945.58340416,0.00017301,2]
[348982172,1736914250466,-201.26408194,0.000175,2]
[348982173,1736914250476,-999.0,0.00017575,8]
[348982174,1736914250489,-200.0,0.0001761,2]
[348982175,1736914250500,-200.0,0.0001761,2]
[348982176,1736914250510,-150.0,0.00017629,2]
[348982177,1736914250521,-298.62079307,0.00017645,2]
[348982178,1736914250532,-152.0,0.00017658,3]
[348982179,1736914250543,-150.0,0.00017701,2]
[348982180,1736914250553,-188.29964986,0.0001773,2]
[348982181,1736914250564,-150.0,0.00017763,2]
[348982182,1736914250579,-1100.0,0.00017808,2]
[348982183,1736914250589,-150.0,0.00017814,2]
[348982184,1736914250600,-300.53,0.00017818,2]
[348982185,1736914250611,-988.32,0.00017818,2]
[348982186,1736914250621,-876.57,0.00017818,2]
[348982187,1736914250633,-300.0,0.00017818,2]
[348982188,1736914250643,-330.09,0.00017818,2]
[348982189,1736914250654,-885.54,0.00017819,2]
[348982190,1736914250666,-772.39,0.00017819,2]
[348982191,1736914250678,-772.39,0.00017819,2]
[348982192,1736914250689,-150.0,0.0001783,2]
[348982193,1736914250702,-150.0,0.00017843,2]
[348982194,1736914250714,-1000.18997962,0.00017871,2]
[348982195,1736914250725,-150.0,0.00017871,2]
[348982196,1736914250735,-992.04815422,0.000179,2]
[348982197,1736914250747,-1200.0,0.000179,6]
[348982198,1736914250758,-160.46734826,0.000179,2]
[348982199,1736914250770,-160.46734812,0.000179,2]
[348982200,1736914250780,-160.46734812,0.000179,2]
[348982201,1736914250791,-160.46734812,0.000179,2]
[348982202,1736914250801,-160.46734812,0.000179,2]
[348982203,1736914250812,-160.46734812,0.000179,2]
[348982204,1736914250823,-160.46734812,0.000179,2]
[348982205,1736914250833,-160.46734812,0.000179,2]
[348982206,1736914250844,-160.46734812,0.000179,2]
[348982207,1736914250855,-160.46734812,0.000179,2]
[348982208,1736914250866,-160.46734812,0.000179,2]
[348982209,1736914250877,-160.46734812,0.000179,2]
[348982210,1736914250888,-160.46734812,0.000179,2]
[348982211,1736914250898,-150.0,0.00017929,2]
[348982212,1736914250909,-2999.0,0.00017945,2]
[348982213,1736914250920,-2999.0,0.00017945,2]
[348982214,1736914250930,-2999.0,0.00017945,2]
[348982215,1736914250942,-2999.0,0.00017945,2]
[348982216,1736914250953,-2999.0,0.00017945,2]
[348982217,1736914250963,-2999.0,0.00017945,2]
[348982218,1736914250974,-2999.0,0.00017945,2]
[348982219,1736914250985,-2999.0,0.00017945,2]
[348982220,1736914250996,-2999.0,0.00017945,2]
[348982221,1736914251006,-2999.0,0.00017945,2]
[348982222,1736914251017,-2999.0,0.00017945,2]
[348982223,1736914251029,-2999.0,0.00017945,2]
[348982224,1736914251040,-2999.0,0.00017945,2]
[348982225,1736914251051,-2999.0,0.00017945,2]
[348982226,1736914251062,-2999.0,0.00017945,2]
[348982227,1736914251077,-930.08196251,0.00017945,2]
[348982228,1736914251088,-152.0,0.00017961,4]
[348982229,1736914251099,-150.2,0.00017973,2]
[348982230,1736914251111,-169408.11425903,0.00018,2]
[348982231,1736914251126,-534.36519297,0.00018,2]
[348982232,1736914251139,-3785.15416186,0.00018,2]
[348982233,1736914251155,-2852.5,0.00018,2]
[348982277,1736915431684,-300.0,9.936e-05,2]
[348982278,1736915431695,-1637.63733463,9.937e-05,2]
[348982279,1736915432021,-2236.31263766,9.937e-05,2]
[348982280,1736915432032,-165.70471759,9.937e-05,2]
[348982281,1736915432041,-331.38795436,9.937e-05,2]
[348982282,1736915432050,-502.6914198,9.973e-05,2]
[348982283,1736915432059,-8570.49,9.999e-05,2]
[348982284,1736915432069,-500.0,9.999e-05,2]
[348982285,1736915432079,-500.0,9.999e-05,2]
[348982286,1736915432089,-500.0,9.999e-05,2]
[348982287,1736915432098,-150.0,9.999e-05,2]
[348982288,1736915432107,-500.0,9.999e-05,2]
[348982289,1736915432117,-25448.79819502,0.0001,2]
[348982292,1736915432267,-319.5,0.0001,2]
[348982296,1736915437603,-48767.50000001,0.0001,2]
[348982297,1736915437819,-4291998.5196024,0.0001,2]
[348982471,1736915439803,-915.34000024,0.0001,2]
[348982478,1736915439861,-972.49888049,0.0001,2]
[348982480,1736915439873,-413.51629892,0.0001,2]
[348982482,1736915439886,-10933.08278253,0.0001,2]
[348982486,1736915439916,-364.27886965,0.0001,2]
[348982493,1736915440135,-273.1445,0.0001,2]
[348982495,1736915440147,-2049.89997072,0.0001,2]
[348982754,1736915442707,-580.2564197,9.999e-05,2]
[348982756,1736915442716,-500.0,9.999e-05,2]
[348982758,1736915442726,-683.84053935,0.0001,2]
[348982763,1736915442765,-393.29595266,0.0001,2]
[348983048,1736915445683,-375.70659874,9.999e-05,2]
[348983050,1736915445694,-1205.40929682,0.0001,2]
[348983062,1736915445792,-7951.28558529,0.0001,2]
[348983073,1736915445901,-1093.40510922,0.0001,2]
[348983765,1736915458189,1851.166065,0.0001961,120]
[348983807,1736916631826,-685.05424735,9.8e-05,2]
[348983808,1736916631864,-2110.45275265,9.8e-05,2]
[348983809,1736916631874,-18402.9509,9.9e-05,2]
[348983810,1736916631883,-158.14,9.903e-05,2]
[348983811,1736916631892,-150.0,9.972e-05,2]
[348983812,1736916631902,-9794.0,9.973e-05,2]
[348983813,1736916631911,-150.0,9.973e-05,2]
[348983814,1736916631920,-500.0,9.999e-05,2]
[348983815,1736916631929,-500.0,9.999e-05,2]
[348983816,1736916631939,-500.0,9.999e-05,2]
[348983817,1736916631949,-500.0,9.999e-05,2]
[348983818,1736916631963,-500.0,9.999e-05,2]
[348983819,1736916631973,-500.0,9.999e-05,2]
[348983820,1736916631982,-500.0,9.999e-05,2]
[348983821,1736916631992,-500.0,9.999e-05,2]
[348983822,1736916632002,-500.0,9.999e-05,2]
[348983823,1736916632012,-504.22,9.999e-05,2]
[348983824,1736916632021,-228.87880732,9.999e-05,2]
[348983825,1736916632031,-500.0,9.999e-05,2]
[348983826,1736916632041,-500.0,9.999e-05,2]
[348983827,1736916632050,-500.0,9.999e-05,2]
[348983828,1736916632059,-410.05943165,9.999e-05,2]
[348983829,1736916632069,-574.65,9.999e-05,2]
[348983830,1736916632078,-500.0,9.999e-05,2]
[348983831,1736916632088,-500.0,9.999e-05,2]
[348983832,1736916632097,-500.0,9.999e-05,2]
[348983833,1736916632106,-500.0,9.999e-05,2]
[348983834,1736916632116,-500.0,9.999e-05,2]
[348983835,1736916632126,-500.0,9.999e-05,2]
[348983836,1736916632134,-500.0,9.999e-05,2]
[348983837,1736916632143,-516.02862644,9.999e-05,2]
[348983838,1736916632153,-500.0,9.999e-05,2]
[348983839,1736916632163,-500.0,9.999e-05,2]
[348983840,1736916632172,-555.05,9.999e-05,2]
[348983841,1736916632181,-500.0,9.999e-05,2]
[348983842,1736916632191,-500.0,9.999e-05,2]
[348983843,1736916632200,-500.0,9.999e-05,2]
[348983844,1736916632209,-500.0,9.999e-05,2]
[348983845,1736916632219,-150.90314075,9.999e-05,2]
[348983846,1736916632228,-500.0,9.999e-05,2]
[348983847,1736916632237,-500.0,9.999e-05,2]
[348983848,1736916632247,-500.0,9.999e-05,2]
[348983849,1736916632256,-500.0,9.999e-05,2]
[348983850,1736916632265,-500.0,9.999e-05,2]
[348983851,1736916632274,-509.14436426,9.999e-05,2]
[348983852,1736916632284,-510.39896248,9.999e-05,2]
[348983853,1736916632293,-500.0,9.999e-05,2]
[348983854,1736916632302,-502.70225883,9.999e-05,2]
[348983855,1736916632311,-502.71957156,9.999e-05,2]
[348983856,1736916632321,-500.0,9.999e-05,2]
[348983857,1736916632331,-500.0,9.999e-05,2]
[348983858,1736916632341,-500.0,9.999e-05,2]
[348983859,1736916632350,-500.0,9.999e-05,2]
[348983861,1736916632360,-500.0,9.999e-05,2]
[348983863,1736916632370,-500.0,9.999e-05,2]
[348983866,1736916632380,-500.0,9.999e-05,2]
[348983867,1736916632390,-500.0,9.999e-05,2]
[348983870,1736916632399,-500.0,9.999e-05,2]
[348983871,1736916632409,-500.0,9.999e-05,2]
[348983873,1736916632419,-500.0,9.999e-05,2]
[348983875,1736916632429,-500.0,9.999e-05,2]
[348983878,1736916632440,-502.22732879,9.999e-05,2]
[348983880,1736916632450,-500.0,9.999e-05,2]
[348983882,1736916632459,-500.0,9.999e-05,2]
[348983883,1736916632469,-609.31,9.999e-05,2]
[348983885,1736916632478,-500.0,9.999e-05,2]
[348983887,1736916632487,-500.0,9.999e-05,2]
[348983889,1736916632497,-500.0,9.999e-05,2]
[348983891,1736916632507,-500.0,9.999e-05,2]
[348983893,1736916632517,-500.0,9.999e-05,2]
[348983895,1736916632526,-500.0,9.999e-05,2]
[348983897,1736916632535,-500.0,9.999e-05,2]
[348983899,1736916632545,-500.0,9.999e-05,2]
[348983901,1736916632554,-500.0,9.999e-05,2]
[348983903,1736916632563,-500.0,9.999e-05,2]
[348983906,1736916632573,-500.0,9.999e-05,2]
[348983909,1736916632583,-500.0,9.999e-05,2]
[348983912,1736916632593,-503.29145397,9.999e-05,2]
[348983914,1736916632603,-496.23726964,9.999e-05,2]
[348983916,1736916632613,-500.0,9.999e-05,2]
[348983918,1736916632625,-500.0,9.999e-05,2]
[348983920,1736916632638,-506.36543386,9.999e-05,2]
[348983922,1736916632648,-501.36850009,9.999e-05,2]
[348983924,1736916632658,-261.03875927,9.999e-05,2]
[348983926,1736916632667,-500.0,9.999e-05,2]
[348983928,1736916632677,-500.0,9.999e-05,2]
[348983930,1736916632687,-500.0,9.999e-05,2]
[348983932,1736916632696,-164.58964276,9.999e-05,2]
[348983934,1736916632705,-500.0,9.999e-05,2]
[348983936,1736916632716,-503.61126405,9.999e-05,2]
[348983938,1736916632726,-500.0,9.999e-05,2]
[348983940,1736916632735,-500.0,9.999e-05,2]
[348983942,1736916632744,-504.08701517,9.999e-05,2]
[348983944,1736916632754,-500.0,9.999e-05,2]
[348983946,1736916632763,-507.13805625,9.999e-05,2]
[348983948,1736916632772,-183.245995,9.999e-05,2]
[348983950,1736916632782,-517.53017164,9.999e-05,2]
[348983952,1736916632791,-471.04253147,9.999e-05,2]
[348983954,1736916632802,-500.0,9.999e-05,2]
[348983956,1736916632811,-503.68962632,9.999e-05,2]
[348983958,1736916632820,-500.0,9.999e-05,2]
[348983960,1736916632829,-500.0,9.999e-05,2]
[348983962,1736916632838,-500.0,9.999e-05,2]
[348983964,1736916632848,-500.0,9.999e-05,2]
[348983966,1736916632857,-500.0,9.999e-05,2]
[348983968,1736916632866,-500.0,9.999e-05,2]
[348983970,1736916632876,-500.0,9.999e-05,2]
[348983972,1736916632884,-500.0,9.999e-05,2]
[348983974,1736916632894,-446.7678167,9.999e-05,2]
[348983976,1736916632903,-501.17025106,9.999e-05,2]
[348983978,1736916632912,-500.0,9.999e-05,2]
[348983980,1736916632921,-500.0,9.999e-05,2]
[348983981,1736916632930,-500.0,9.999e-05,2]
[348983983,1736916632940,-506.37398102,9.999e-05,2]
[348983986,1736916632953,-426.86415236,9.999e-05,2]
[348983987,1736916632964,-500.0,9.999e-05,2]
[348983990,1736916632975,-500.0,9.999e-05,2]
[348984009,1736916633153,-500.0,9.999e-05,2]
[348984011,1736916633163,-500.0,9.999e-05,2]
[348984013,1736916633173,-500.0,9.999e-05,2]
[348984015,1736916633182,-500.0,9.999e-05,2]
[348984017,1736916633192,-500.0,9.999e-05,2]
[348984019,1736916633202,-508.05577665,9.999e-05,2]
[348984020,1736916633211,-500.0,9.999e-05,2]
[348984022,1736916633221,-506.63146169,9.999e-05,2]
[348984024,1736916633231,-500.0,9.999e-05,2]
[348984027,1736916633241,-529.05,9.999e-05,2]
[348984028,1736916633251,-500.0,9.999e-05,2]
[348984030,1736916633260,-500.0,9.999e-05,2]
[348984032,1736916633269,-500.0,9.999e-05,2]
[348984034,1736916633278,-501.84810512,9.999e-05,2]
[348984036,1736916633288,-500.0,9.999e-05,2]
[348984038,1736916633297,-500.0,9.999e-05,2]
[348984040,1736916633307,-500.0,9.999e-05,2]
[348984042,1736916633317,-504.38189766,9.999e-05,2]
[348984044,1736916633328,-500.0,9.999e-05,2]
[348984046,1736916633337,-500.0,9.999e-05,2]
[348984049,1736916633348,-502.80564871,9.999e-05,2]
[348984051,1736916633358,-502.91779113,9.999e-05,2]
[348984053,1736916633368,-514.17489217,9.999e-05,2]
[348984055,1736916633378,-500.0,9.999e-05,2]
[348984057,1736916633387,-500.0,9.999e-05,2]
[348984059,1736916633397,-500.0,9.999e-05,2]
[348984061,1736916633406,-500.0,9.999e-05,2]
[348984062,1736916633415,-500.0,9.999e-05,2]
[348984064,1736916633425,-500.0,9.999e-05,2]
[348984066,1736916633435,-500.0,9.999e-05,2]
[348984068,1736916633445,-500.0,9.999e-05,2]
[348984070,1736916633454,-500.0,9.999e-05,2]
[348984072,1736916633464,-387.16838012,9.999e-05,2]
[348984074,1736916633474,-500.0,9.999e-05,2]
[348984076,1736916633483,-663.982168,9.999e-05,2]
[348984078,1736916633492,-500.0,9.999e-05,2]
[348984080,1736916633502,-500.0,9.999e-05,2]
[348984082,1736916633511,-500.0,9.999e-05,2]
[348984084,1736916633521,-500.0,9.999e-05,2]
[348984086,1736916633530,-500.0,9.999e-05,2]
[348984088,1736916633540,-500.0,9.999e-05,2]
[348984090,1736916633550,-500.0,9.999e-05,2]
[348984092,1736916633560,-500.0,9.999e-05,2]
[348984094,1736916633569,-505.93288184,9.999e-05,2]
[348984096,1736916633578,-500.0,9.999e-05,2]
[348984098,1736916633587,-502.22308949,9.999e-05,2]
[348984100,1736916633597,-500.0,9.999e-05,2]
[348984102,1736916633607,-504.59142475,9.999e-05,2]
[348984104,1736916633617,-500.0,9.999e-05,2]
[348984106,1736916633626,-500.0,9.999e-05,2]
[348984108,1736916633636,-498.55319288,9.999e-05,2]
[348984110,1736916633645,-500.0,9.999e-05,2]
[348984112,1736916633654,-500.80957133,9.999e-05,2]
[348984114,1736916633664,-500.0,9.999e-05,2]
[348984116,1736916633674,-500.0,9.999e-05,2]
[348984118,1736916633683,-538.17307005,9.999e-05,2]
[348984120,1736916633693,-500.0,9.999e-05,2]
[348984122,1736916633703,-502.42363084,9.999e-05,2]
[348984124,1736916633713,-500.0,9.999e-05,2]
[348984126,1736916633722,-500.0,9.999e-05,2]
[348984128,1736916633732,-500.0,9.999e-05,2]
[348984130,1736916633742,-500.0,9.999e-05,2]
[348984132,1736916633752,-500.0,9.999e-05,2]
[348984134,1736916633761,-500.0,9.999e-05,2]
[348984136,1736916633772,-500.0,9.999e-05,2]
[348984137,1736916633781,-501.55349214,9.999e-05,2]
[348984138,1736916633791,-500.0,9.999e-05,2]
[348984139,1736916633801,-387.60770123,9.999e-05,2]
[348984140,1736916633811,-500.0,9.999e-05,2]
[348984141,1736916633821,-510.95587114,9.999e-05,2]
[348984142,1736916633830,-500.0,9.999e-05,2]
[348984143,1736916633840,-500.0,9.999e-05,2]
[348984144,1736916633850,-509.69092421,9.999e-05,2]
[348984145,1736916633860,-500.0,9.999e-05,2]
[348984146,1736916633869,-500.0,9.999e-05,2]
[348984147,1736916633878,-500.0,9.999e-05,2]
[348984148,1736916633888,-500.0,9.999e-05,2]
[348984149,1736916633898,-500.0,9.999e-05,2]
[348984151,1736916633907,-500.0,9.999e-05,2]
[348984153,1736916633917,-500.0,9.999e-05,2]
[348984155,1736916633926,-500.0,9.999e-05,2]
[348984157,1736916633936,-500.0,9.999e-05,2]
[348984159,1736916633946,-500.0,9.999e-05,2]
[348984161,1736916633958,-500.0,9.999e-05,2]
[348984163,1736916633968,-500.0,9.999e-05,2]
[348984165,1736916633978,-494.5936943,9.999e-05,2]
[348984167,1736916633988,-500.0,9.999e-05,2]
[348984169,1736916633999,-500.0,9.999e-05,2]
[348984171,1736916634008,-500.0,9.999e-05,2]
[348984173,1736916634018,-500.0,9.999e-05,2]
[348984175,1736916634029,-500.0,9.999e-05,2]
[348984177,1736916634038,-500.0,9.999e-05,2]
[348984179,1736916634047,-500.0,9.999e-05,2]
[348984181,1736916634057,-500.0,9.999e-05,2]
[348984182,1736916634066,-542.41956669,9.999e-05,2]
[348984184,1736916634075,-500.0,9.999e-05,2]
[348984186,1736916634085,-402.35416028,9.999e-05,2]
[348984188,1736916634094,-500.0,9.999e-05,2]
[348984190,1736916634104,-500.0,9.999e-05,2]
[348984192,1736916634113,-500.0,9.999e-05,2]
[348984194,1736916634123,-500.0,9.999e-05,2]
[348984196,1736916634132,-500.0,9.999e-05,2]
[348984198,1736916634141,-500.0,9.999e-05,2]
[348984200,1736916634150,-500.0,9.999e-05,2]
[348984202,1736916634159,-375.85211328,9.999e-05,2]
[348984204,1736916634169,-500.0,9.999e-05,2]
[348984206,1736916634178,-500.0,9.999e-05,2]
[348984208,1736916634188,-500.0,9.999e-05,2]
[348984210,1736916634197,-500.0,9.999e-05,2]
[348984212,1736916634206,-22755.00143019,0.0001,2]
[348984218,1736916634252,-5602.20002,0.0001,2]
[348984220,1736916634264,-76686.4698761,0.0001,2]
[348984223,1736916634280,-14869.12555874,0.0001,2]
[348984225,1736916634292,-17941.05596346,0.0001,2]
[348984227,1736916634303,-22935.99296211,0.0001,2]
[348984569,1736916637715,-7095.87462594,0.0001,2]
[348984571,1736916637727,-16879.60488158,0.0001,2]
[348984573,1736916637739,-924.25945818,0.0001,2]
[348984577,1736916637768,-7080.60352483,0.0001,2]
[348984584,1736916637827,-1943.46898318,0.0001,2]
[348984601,1736916637986,-3078537.35828591,0.0001,2]
[348984603,1736916637996,-91955.3653243,0.0001,2]
[348984605,1736916638005,-170.75392109,0.0001,2]
[348984607,1736916638014,-1187815.65595999,0.0001,2]
[348984812,1736916639786,-500.0,9.999e-05,2]
[348984814,1736916639795,-71.33144562,0.0001,2]
[348984832,1736916639950,-500.0,9.999e-05,2]
[348984834,1736916639968,-138.02,9.999e-05,2]
[348984836,1736916639977,-861.98,0.0001,2]
[348984840,1736916640006,-509.58558668,0.0001,2]
[348984847,1736916640061,-1090.60975983,0.0001,2]
[348984853,1736916640118,-3614.65474966,0.0001,2]
[348984856,1736916640131,-464.53,0.0001,2]
[348985141,1736916642831,-262.47,9.999e-05,2]
[348985143,1736916642843,-72.24,9.999e-05,2]
[348985145,1736916642853,-432.90180006,9.999e-05,2]
[348985149,1736916642887,-67.09819994,9.999e-05,2]
[348985151,1736916642897,-378.52182006,9.999e-05,2]
[348985154,1736916642998,-121.47817994,9.999e-05,2]
[348985155,1736916643008,-500.0,9.999e-05,2]
[348985156,1736916643018,-11797.0491892,0.0001,2]
[348985166,1736916643107,-500.0,9.999e-05,2]
[348985168,1736916643117,-181.83583395,0.0001,2]
[348985510,1736916645847,-473.40432653,9.999e-05,2]
[348985513,1736916645859,-26.59567347,9.999e-05,2]
[348985515,1736916645868,-500.0,9.999e-05,2]
[348985517,1736916645878,-186.86799556,9.999e-05,2]
[348985519,1736916645887,-93.59180097,0.0001,2]
[348985521,1736916645898,-3089.9999995,0.0001,2]
[348985539,1736916646062,-1457.571224,0.0001,2]
[348985546,1736916646121,-11259.25591169,0.0001,2]
[348985548,1736916646132,-13182.055077,0.0001,2]
[348985550,1736916646143,-3173.4500005,0.0001,2]
[348985552,1736916646154,-1279.3030988,0.0001,2]
[348986840,1736917832010,-412.5009,9.7e-05,2]
[348986841,1736917832019,-333.21960545,9.9e-05,3]
[348986842,1736917832031,-266.78039455,9.9e-05,3]
[348986843,1736917832041,-150.0,9.998e-05,2]
[348986844,1736917832050,-406.11960545,9.999e-05,2]
[348986845,1736917832061,-98.85545511,9.999e-05,2]
[348986846,1736917832072,-245.92454479,9.999e-05,2]
[348986847,1736917832087,-254.07545521,9.999e-05,2]
[348986848,1736917832098,-104.15178664,9.999e-05,2]
[348986849,1736917832123,-304.0,9.999e-05,2]
[348986850,1736917832183,-92.5914461,9.999e-05,2]
[348986851,1736917832194,-501.05210503,9.999e-05,2]
[348986852,1736917832204,-500.19721523,9.999e-05,2]
[348986853,1736917832213,-503.54357917,9.999e-05,2]
[348986854,1736917832223,-500.6132211,9.999e-05,2]
[348986855,1736917832233,-500.0,9.999e-05,2]
[348986856,1736917832243,-501.48969543,9.999e-05,2]
[348986857,1736917832253,-503.01450557,9.999e-05,2]
[348986858,1736917832268,-506.17082906,9.999e-05,2]
[348986859,1736917832278,-501.55792704,9.999e-05,2]
[348986860,1736917832288,-500.0,9.999e-05,2]
[348986861,1736917832298,-500.0,9.999e-05,2]
[348986862,1736917832307,-579.44685189,9.999e-05,2]
[348986863,1736917832316,-500.0,9.999e-05,2]
[348986864,1736917832326,-224.59502498,9.999e-05,2]
[348986865,1736917832337,-275.40497502,9.999e-05,2]
[348986866,1736917832347,-500.0,9.999e-05,2]
[348986867,1736917832358,-195.96542498,9.999e-05,2]
[348986868,1736917832375,-304.03457502,9.999e-05,2]
[348986869,1736917832385,-156.70542498,9.999e-05,2]
[348986870,1736917832396,-343.29457502,9.999e-05,2]
[348986871,1736917832407,-500.27353371,9.999e-05,2]
[348986872,1736917832416,-500.0,9.999e-05,2]
[348986873,1736917832425,-155.22138855,9.999e-05,2]
[348986874,1736917832437,-350.45925355,9.999e-05,2]
[348986875,1736917832446,-502.43938744,9.999e-05,2]
[348986876,1736917832457,-329.81227614,9.999e-05,2]
[348986877,1736917832472,-172.44181336,9.999e-05,2]
[348986879,1736917832481,-469.71210607,9.999e-05,2]
[348986881,1736917832495,-32.37361873,9.999e-05,2]
[348986883,1736917832505,-500.0,9.999e-05,2]
[348986885,1736917832514,-500.0,9.999e-05,2]
[348986887,1736917832523,-500.0,9.999e-05,2]
[348986889,1736917832532,-501.95778189,9.999e-05,2]
[348986891,1736917832542,-501.81619851,9.999e-05,2]
[348986893,1736917832551,-500.16485658,9.999e-05,2]
[348986895,1736917832560,-500.0,9.999e-05,2]
[348986897,1736917832570,-500.0,9.999e-05,2]
[348986899,1736917832580,-500.0,9.999e-05,2]
[348986901,1736917832589,-500.0,9.999e-05,2]
[348986903,1736917832599,-500.0,9.999e-05,2]
[348986905,1736917832608,-500.0,9.999e-05,2]
[348986907,1736917832619,-501.64515664,9.999e-05,2]
[348986909,1736917832628,-500.0,9.999e-05,2]
[348986911,1736917832638,-500.0,9.999e-05,2]
[348986913,1736917832647,-511.3070403,9.999e-05,2]
[348986915,1736917832657,-505.34019006,9.999e-05,2]
[348986917,1736917832667,-405.59873259,9.999e-05,2]
[348986920,1736917832679,-94.40126741,9.999e-05,2]
[348986922,1736917832688,-500.0,9.999e-05,2]
[348986924,1736917832697,-507.6220065,9.999e-05,2]
[348986925,1736917832707,-98.99589852,9.999e-05,2]
[348986939,1736917832903,-406.31644173,9.999e-05,2]
[348986940,1736917832914,-502.97695093,9.999e-05,2]